Cogmind - Beta 14 @@@ ROGUE MODE // 2025.03.22 @ 14:22:07 Player: potator Result: Destroyed by G-47 Trooper with Particle Gun Performance ------------- Evolutions (1) 500 Regions Visited (2) 400 Robots Destroyed (45) 225 Value Destroyed (1176) 1176 Prototype IDs (2) 40 Alien Tech Used (0) 0 Bonus (11) 11 TOTAL SCORE: 2352 Bonus ------- High Alert Combat Kills 11 Cogmind --------- Core Integrity 0/400 Matter 205/300 Energy 100/100 System Corruption 0% Temperature Cool (9) Movement Core (300) Ox5 Location -9/Materials Parts ------- > --- POWER (1) -------- (None) > --- PROPULSION (2) --- (None) > --- UTILITY (4) ------ Medium Storage Unit Sensor Array Signal Interpreter Hacking Suite > --- WEAPON (2) ------- Particle Cannon Mining Claw > --- INVENTORY (10) --- Heat Sink Improved Heat Sink Structural Scanner Trap Extractor (0/4) EMP Blaster Peak State ------------ > --- POWER ------------ Heavy Ion Engine > --- PROPULSION ------- Aluminum Leg Aluminum Leg > --- UTILITY ---------- Small Storage Unit Structural Scanner Sensor Array Hacking Suite > --- WEAPON ----------- Improved Light Cannon Improved Light Cannon > --- INVENTORY -------- Improved Ion Engine Light Treads Light Treads Heat Sink Trap Extractor Particle Cannon EMP Blaster Mining Claw [Rating: 16] Favorites ----------- Power Improved Ion Engine Engine Improved Ion Engine Propulsion Aluminum Leg Leg Aluminum Leg Utility Sensor Array Device Sensor Array Storage Small Storage Unit Processor Signal Interpreter Hackware Hacking Suite Weapon Improved Light Cannon Energy Cannon Beam Cannon Ballistic Gun Autogun Ballistic Cannon Improved Light Cannon Launcher Grenade Launcher Slashing Weapon Mining Claw Build | -11 -10 -9 ------- Run | Yrd Mat Mat Slots Evolved 2 | . . 2 Power . | . . . Propulsion . | . . . Utility 2 | . . 2 Weapon . | . . . Parts Attached 37 | 4 8 25 Power 6 | 1 1 4 Engine 6 | 1 1 4 Core . | . . . Reactor . | . . . Propulsion 8 | . 2 6 Treads . | . . . Leg 8 | . 2 6 Wheel . | . . . Hover . | . . . Flight . | . . . Utility 7 | 1 1 5 Device 3 | . 1 2 Storage 2 | 1 . 1 Processor 1 | . . 1 Hackware 1 | . . 1 Protection . | . . . Artifact . | . . . Weapon 16 | 2 4 10 Energy Gun . | . . . Energy Cannon 2 | . . 2 Ballistic Gun 5 | 2 2 1 Ballistic Cannon 5 | . . 5 Launcher 3 | . 2 1 Special Weapon . | . . . Impact Weapon . | . . . Slashing Weapon 1 | . . 1 Piercing Weapon . | . . . Special Melee Weapon . | . . . Unidentified Prototypes . | . . . Parts Lost 8 | . 1 7 Power 2 | . . 2 Propulsion 2 | . . 2 Utility . | . . . Weapon 4 | . 1 3 Highest Loss Streak 4 | . 1 4 To Critical Strikes 1 | . . 1 Average Slot Usage (%) 95 | . 92 95 Engine 11 | . 14 10 Leg 23 | . 28 21 Device 14 | . 7 16 Storage 11 | . 14 11 Processor 2 | . . 4 Hackware 6 | . . 9 Energy Cannon 1 | . . 1 Ballistic Gun 12 | . 27 7 Ballistic Cannon 9 | . . 13 Peak Build Rating 16 | 4 7 16 Average Rating 11 | 3 6 14 On Entrance 3 | . 4 7 Naked Turns . | . . . Heaviest Build 27 | 11 14 27 Greatest Support 23 | 3 20 23 Greatest Overweight (x) 5 | 3 . 5 Average Overweight (x) . | 2 . . Largest Inventory Capacity 10 | 8 8 10 Average Capacity 8 | 7 8 8 Most Carried 10 | 3 4 10 Average Carried 6 | 1 3 7 Final Capacity 10 | 8 8 10 Final Carried 5 | 2 4 5 Class Distribution -------------------- 71% | Mutant 28% | Scavenger-Mutant Dominant Class ---------------- Mutant | -10/Materials Mutant | -9/Materials Resources | -11 -10 -9 ----------- Run | Yrd Mat Mat Matter Collected 1051 | 240 174 637 Remotely . | . . . Salvage Created 1104 | . 238 866 Parts 85 | . 16 69 Haulers Intercepted . | . . . Recyclers Shooed . | . . . Parts Field Recycled . | . . . Retrieved Matter . | . . . Parts Self-Destructed . | . . . Prevented . | . . . Kills | -11 -10 -9 ------- Run | Yrd Mat Mat Combat Hostiles Destroyed 36 | . 9 27 Melee 1 | . . 1 Guns 9 | . 4 5 Cannons 18 | . . 18 AOE 8 | . 5 3 Classes Destroyed 7 | . 3 4 Worker 1 | . . 1 Builder 1 | . . 1 Operator 1 | . . 1 Watcher 6 | . 1 5 Swarmer 14 | . 3 11 Grunt 14 | . 6 8 Sentry 8 | . . 8 Best Kill Streak 7 | . 4 7 Combat Bots Only 6 | . 4 6 Max Kills in Single Turn 3 | . 3 2 Gunslinging . | . . . Exploded 2 | . 2 2 Melee 1 | . . 1 Uniques/NPCs Destroyed . | . . . Combat | -11 -10 -9 -------- Run | Yrd Mat Mat Hostile Shots Fired 201 | . 22 179 Missed 53 | . 8 45 Damage Taken 1768 | . 188 1580 Core 429 | . 18 411 Absorbed by Shields . | . . . Core Remaining (%) 96 | 100 92 . Volleys Fired 88 | . 16 72 Largest 2 | . 2 2 Hottest 80 | . 50 80 Shots Fired 172 | . 31 141 Gun 67 | . 27 40 Cannon 98 | . . 98 Launcher 7 | . 4 3 Special . | . . . Kinetic 156 | . 27 129 Thermal 9 | . . 9 Explosive 4 | . 4 . Electromagnetic 3 | . . 3 Robot Hit Streak 10 | . 5 10 Robot Miss Streak 3 | . 2 3 Penetration Max . | . . . Secondary Targets 1 | . 1 . Max Gunslinging Chain 1 | . 1 . Shots Hit Robots 107 | . 15 92 Core Hits 57 | . 16 41 Critical Kills . | . . . Critical Parts Destroyed . | . . . Critical Strikes 3 | . . 3 Blast 3 | . . 3 Melee Attacks 5 | . . 5 Impact . | . . . Slashing 5 | . . 5 Piercing . | . . . Sneak Attacks . | . . . Combat Hostiles . | . . . Follow-up Attacks . | . . . Damage Inflicted 2505 | . 497 2008 Guns 512 | . 162 350 Cannons 1398 | . . 1398 Explosions 548 | . 335 213 Melee 47 | . . 47 Ramming . | . . . Kinetic 1764 | . 162 1602 Thermal 186 | . . 186 Explosive 335 | . 335 . Electromagnetic 173 | . . 173 Impact . | . . . Slashing 47 | . . 47 Piercing . | . . . Highest Corruption . | . . . Average Corruption . | . . . Corruption Purged . | . . . Corruption Blocked . | . . . Overload Shots . | . . . Overflow Damage 57 | . 6 51 Projectiles 44 | . . 44 Explosions 13 | . 6 7 Melee . | . . . Knockbacks 6 | . . 6 Impact . | . . . Kinetic 6 | . . 6 Secondary . | . . . Self-Inflicted Damage 39 | . 39 . Shots 1 | . 1 . Rammed . | . . . Targets Rammed . | . . . Kicked . | . . . Crushed . | . . . Highest Temperature 117 | . 18 117 Average Temperature 29 | . 6 30 Received Heat Transfer 585 | . 66 519 Siege Activations . | . . . Robots Corrupted . | . . . Combat Hostiles . | . . . Parts Fried . | . . . Impact Corruptions . | . . . Robots Melted . | . . . Combat Hostiles . | . . . Parts Melted . | . . . Heat Transferred 346 | . . 346 Parts Sabotaged . | . . . Parts Stolen . | . . . Parts Stripped . | . . . Power Chain Reactions 1 | . . 1 Alert | -11 -10 -9 ------- Run | Yrd Mat Mat Peak Influence 423 | . 258 423 Initial 41 | . . 41 Average 190 | . 105 226 Maximum Alert Level 2 | . 1 2 Low Security (%) 49 | 100 81 36 Level 1 50 | . 18 63 Level 2 . | . . . Level 3 . | . . . Level 4 . | . . . Level 5 . | . . . High Security . | . . . Max Security . | . . . Squads Dispatched 1 | . . 1 Investigation . | . . . Extermination . | . . . Reinforcement 1 | . . 1 Assault . | . . . Garrison . | . . . Intercept . | . . . Searches Triggered . | . . . Construction Impeded . | . . . Haulers Reinforced . | . . . Active Scanning Responses . | . . . Cargo Convoy Interrupts . | . . . Stealth | -11 -10 -9 --------- Run | Yrd Mat Mat Distress Signals 5 | . 1 4 Communications Jammed . | . . . Distress Signals . | . . . Times Spotted 58 | . 13 45 Peak Tracking Total 5 | . 5 5 Tactical Retreats 6 | . 1 5 Traps | -11 -10 -9 ------- Run | Yrd Mat Mat Traps Triggered 1 | . . 1 Indirectly . | . . . Trap Hack Attempts . | . . . Triggered . | . . . Disarmed 3 | . 3 . Reprogrammed 3 | . . 3 Reused . | . . . Traps Extracted . | . . . Installed . | . . . Triggered . | . . . Machines | -11 -10 -9 ---------- Run | Yrd Mat Mat Machines Disabled 3 | . 1 2 Max in Single Turn 1 | . 1 1 Machines Repaired . | . . . Machines Dismantled . | . . . Machines Sabotaged . | . . . Overloaded Fab Kills . | . . . Hacking | -11 -10 -9 --------- Run | Yrd Mat Mat Machines Accessed 11 | . 5 6 Terminals 11 | . 5 6 Fabricators . | . . . Repair Stations . | . . . Recycling Units . | . . . Scanalyzers . | . . . Garrison Access . | . . . Total Hacks 29 | . 13 16 Successful 16 | . 7 9 Failed 13 | . 6 7 Catastrophic . | . . . Database Lockouts . | . . . Manual . | . . . Terminals 29 | . 13 16 Fabricators . | . . . Repair Stations . | . . . Recycling Units . | . . . Scanalyzers . | . . . Garrison Access . | . . . Terminal Hacks 16 | . 7 9 Prototype ID Bank 1 | . 1 . Emergency Access Points 1 | . 1 . Locate Traps 4 | . 2 2 Disarm Traps 1 | . 1 . Reprogram Traps 1 | . . 1 Investigation Status 1 | . . 1 Hauler Manifests 2 | . 1 1 Zone Layout 5 | . 1 4 Fabricator Hacks . | . . . Repair Station Hacks . | . . . Recycling Unit Hacks . | . . . Scanalyzer . | . . . Garrison Access Hacks . | . . . Unauthorized Hacks . | . . . Terminals . | . . . Fabricators . | . . . Repair Stations . | . . . Recycling Units . | . . . Scanalyzers . | . . . Garrison Access . | . . . Data Cores Recovered 1 | . . 1 Used . | . . . Hacking Detections 7 | . 2 5 Full Trace Events 2 | . . 2 Feedback Events . | . . . Feedback Blocked . | . . . Robot Schematics Acquired . | . . . Robots Built . | . . . Authchips . | . . . Time . | . . . Total Robot Build Rating . | . . . Part Schematics Acquired . | . . . Parts Built . | . . . Authchips . | . . . Time . | . . . Total Part Build Rating . | . . . Parts Repaired . | . . . Time . | . . . Parts Recycled . | . . . Recycled Matter . | . . . Retrieved Matter . | . . . Retrieved Components . | . . . Parts Scanalyzed . | . . . Part Schematics Acquired . | . . . Parts Damaged . | . . . Bothacking | -11 -10 -9 ------------ Run | Yrd Mat Mat Used RIF Installer . | . . . Robots Hacked . | . . . Non-combat . | . . . Combat . | . . . Robot Hacks Applied . | . . . Relay Couplers Released . | . . . Fabnet Peak Effective % . | . . . Robots Rewired . | . . . Allies Hacked . | . . . Hacks Repelled . | . . . Allies | -11 -10 -9 -------- Run | Yrd Mat Mat Total Allies . | . . . Largest Group . | . . . Highest-Rated Group . | . . . Highest-Rated Ally . | . . . Total Orders . | . . . Ally Attacks . | . . . Total Damage . | . . . Kills . | . . . Allies Corrupted . | . . . Allies Melted . | . . . Intel | -11 -10 -9 ------- Run | Yrd Mat Mat Robot Analysis Total . | . . . Derelict Logs Recovered . | . . . Drone Launches . | . . . Drone Recoveries . | . . . Exploration | -11 -10 -9 ------------- Run | Yrd Mat Mat Turns Passed 2863 | 66 735 2062 Spaces Moved 1377 | 35 437 905 Core 37 | 35 . 2 Treads . | . . . Legs 1340 | . 437 903 Wheels . | . . . Hover . | . . . Flight . | . . . Fastest Speed 50 | 50 120 120 Average Speed 160 | 165 120 179 Slowest Speed 300 | 200 120 300 Overloaded Moves . | . . . Propulsion Burnouts . | . . . Robots Hopped . | . . . Cave-ins Triggered . | . . . Exploration Rate (%) 48 | 4 61 80 Regions Visited 2 Branch Regions . Pre-discovered Areas . | . . . Known Exits Taken . | . . . Unknown Exits Taken 2 | 1 1 . Scrap Searched . | . . . Spaces Dug . | . . . Terrain Destroyed 46 | . 37 9 Melee . | . . . Projectile 3 | . . 3 AOE 43 | . 37 6 Terrain Rammed . | . . . Walls Destroyed . | . . . Machines Disabled . | . . . Actions | -11 -10 -9 --------- Run | Yrd Mat Mat Total 1862 | 44 617 1201 Wait 315 | . 149 166 Move 1375 | 34 436 905 Hop . | . . . Pick Up 27 | 6 7 14 Fast Attach 4 | . . 4 Attach 14 | 4 4 6 Detach 1 | . . 1 Swap 19 | . 4 15 Drop 14 | . 1 13 Fire 88 | . 16 72 Melee 5 | . . 5 Ram . | . . . Kick . | . . . Crush . | . . . Escape Stasis . | . . . Rewire . | . . . Trap . | . . . Miscellaneous . | . . . Route ------- -11/Scrapyard -10/Materials (discovered 2 exits: *Mat x2) -9/Materials (discovered 5 exits: *Mat x3 / *Min x2) History --------- Turn | Location | Event 23 | -11/Scrapyard | Discovered new exit (range 16) 67 | -11/Scrapyard | Entered Materials 308 | -10/Materials | Build established: Mutant 322 | -10/Materials | Discovered new exit (range 10) 499 | -10/Materials | Discovered new exit (range 11) 802 | -10/Materials | Entered another Materials area 802 | -9/Materials | Evolved 2 slots: Utility x2 1147 | -9/Materials | Discovered new exit (range 11) 1505 | -9/Materials | Build established: Scavenger-Mutant 1891 | -9/Materials | Discovered new exit (range 3) 2062 | -9/Materials | Discovered new exit (range 15) 2245 | -9/Materials | Discovered new exit (range 16) 2282 | -9/Materials | Identified exit to Materials 2324 | -9/Materials | Build established: Mutant 2402 | -9/Materials | Identified exit to Mines 2719 | -9/Materials | Discovered exit to Materials (range 8) 2787 | -9/Materials | Core integrity fell below 50% 2807 | -9/Materials | Lost 4 parts (1p1n2w) 2852 | -9/Materials | Core integrity fell below 20% 2864 | -9/Materials | Destroyed by G-47 Trooper with Particle Gun Last Messages --------------- K-01 Serf collects debris. R-06 Scavenger collects Flight Unit. S-10 Pest destroyed. Chain reaction triggered in Imp. Ion Engine. Destroyed Lgt. Ion Engine. S-10 Pest destroyed. Destroyed Wheel. K-01 Serf destroyed. Y-45 Defender destroyed. Acquired 29 matter. K-01 Serf collects debris. Acquired 1 matter. Imp. Light Cannon destroyed. C-30 ARC bursts open, deploying its payload. G-47 Trooper unfolds itself. G-34 Mercenary unfolds itself. K-01 Serf collects debris. Aluminum Leg destroyed. Hvy. Ion Engine destroyed. G-34 Mercenary destroyed. Map ----- +----------------------------------------------------+ | ????# ^# """ ########????? | | ????# # """ # #????? | | ????# # "" # #????? | | ????##### # """ # #????? | | ????????# + "" ###### ###### | | ????????# # """ #????# | | ????????# # " #????# | | ????????# # #????# | | ????????# #######????# " | | ???????## ############ T | | ???????# " | | ????????? ??????????????????? | | ????????? ?????????????????? | | ????????? % ?????????????????? | | ????????? #???????# # | | ????????# ##???????# # | | ???##???# #????????# """ + | | #### #### #????????# """ # | | # # #????????# """ ### | | # # #????????# #?# | | # """"" # x#????????########?# | | # """"" # ############# ### | | # """"" #% | | # # !############# ### | | # g #k=%##??????????#####?? | | # " "Y@[ =* #?????????######## | | # "T" %% [!##?????????# # | | # """ =! ##?????????# # | | # # #?????????# "" # | | ######## #?????????# "T # | | ?# # ##?????????# "" # | | ?# # #??????????# # | | ?# [! " #??????????###+#### | | ?# [! ! # ############ =%!#? | | ?# [ # ! ## | | ?# ?# %% | | ?######?# ## | | # # ############ # | | # # #??????????####### | | # + #???????????????## | | # # #???????????????## | | # /!] # < #???????????????## | | # /] ?# #???????????????## | | # /] ?#####???????????????### | | # ??????????????????????### | | # ????????????????????????? | | # ?????????????????????????? | | # ?????????????????????????? | | ####??????????????????????????? | | ??????????????????????????????? | +----------------------------------------------------+ Best States ------------- Heat Dissipation 28 Energy Generation 14 Energy Capacity 280 Matter Stores 300 Matter Capacity 300 Sight Range 16 Robot Scan Range 14 Terrain Scan Density 10 Evasion (%) 55 Offensive Hacking 10 Item Schematics ----------------- None Robot Schematics ------------------ None Fabricated ------------ Nothing Alien Tech Used ----------------- None Achievements -------------- None Challenges ------------ None Game ------ Seed ImpactFocalStorm Manual? 0 Play Time 00:23:08 Cumulative 14.3 hours Start 2025.03.22 @ 14:02:14 End 2025.03.22 @ 14:22:07 Sessions 1 Manual Loads 0 Difficulty Rogue Special Mode None Game No. 28 Rogue 28 Adventurer 0 Explorer 0 Win Type - Total 0 Types 0/0/0/0/0/0/0/0/0 Lore% 9 Gallery% 16 Achievement% 14 Wizard Run 0 Options --------- Layout 1 ASCII 0 Keyboard 0 Movement Mouse Keybinds 0 Fullscreen 2 Font 24/Smallcaps Map View 50x35 Zoom Use 0% Tactical HUD 0 Map Filters NONE Filters NONE Steam 1 RUN: aefa595e-8454-47ae-b33b-54eea160f140